bitfinex/quotes_SOLUSD_20250306
["timestamp","ask_amount","ask_price","bid_price","bid_amount"]
[1741226646595,0.033,148.28,148.27,393.86864628]
[1741226646822,0.033,148.28,148.27,312.14216157]
[1741226647313,0.033,148.28,148.2,388.4984566]
[1741226647477,0.033,148.28,148.2,209.9]
[1741226647679,20.0,148.26,148.2,128.6]
[1741226647881,102.57096603,148.25,148.14,81.3]
[1741226648086,20.0,148.2,148.09,120.56]
[1741226648285,20.0,148.2,148.09,299.1584566]
[1741226648492,20.0,148.2,148.09,255.06]
[1741226648794,20.0,148.2,148.1,0.28432314]
[1741226648989,1.77161309,148.22,148.12,0.14216157]
[1741226649330,21.77166225,148.21,148.11,134.5]
[1741226649489,38.64964886,148.2,148.09,120.56]
[1741226649691,1.77191844,148.19,148.09,120.56]
[1741226650085,1.77170992,148.22,148.1,62.89026703]
[1741226650285,18.933972,148.25,148.15,0.14216157]
[1741226650520,18.64964886,148.23,148.15,0.14216157]
[1741226650688,1.77165846,148.22,148.15,0.14216157]
[1741226650889,99.44964886,148.21,148.09,120.56]
[1741226651084,0.28432314,148.19,148.09,120.56]
[1741226651292,1.77226162,148.18,148.09,120.56]
[1741226651588,1.77226162,148.18,148.1,0.28432314]
[1741226651815,6.1337,148.2,148.1,0.28432314]
[1741226652119,1.77176815,148.19,148.09,255.06]
[1741226652323,18.64964886,148.18,148.09,120.56]
[1741226652490,1.77222935,148.17,148.09,120.56]
[1741226652818,1.77222935,148.17,148.1,0.14216157]
[1741226653188,1.77222935,148.17,148.09,120.56]
[1741226653695,20.0,148.15,148.1,0.14216157]
[1741226653889,20.0,148.15,148.1,312.14216157]
[1741226654088,1.77217964,148.18,148.11,0.14216157]
[1741226654333,6.1337,148.2,148.11,0.14216157]
[1741226654519,6.1337,148.2,148.11,81.44216157]
[1741226654820,20.0,148.17,148.11,0.14216157]
[1741226654988,20.0,148.15,148.09,120.56]
[1741226655189,20.0,148.13,148.09,120.56]
[1741226655707,20.0,148.13,148.1,0.14216157]
[1741226656418,80.8,148.19,148.1,0.14216157]
[1741226656623,1.77188951,148.18,148.1,0.14216157]
[1741226657139,1.77188951,148.18,148.1,0.28432314]
[1741226657338,2.033,148.28,148.13,0.14216157]
[1741226657339,6.02,148.26,148.13,0.14216157]
[1741226657532,18.64964886,148.24,148.16,0.14216157]
[1741226657713,20.0,148.22,148.16,0.14216157]
[1741226658130,20.0,148.18,148.12,0.14216157]
[1741226658637,82.57150496,148.25,148.12,44.52494131]
[1741226658843,20.0,148.22,148.12,268.32494131]
[1741226659617,20.0,148.22,148.12,224.22648471]
[1741226659836,82.57150496,148.25,148.12,268.32494131]
[1741226660010,18.64964886,148.24,148.12,223.94216157]
[1741226660206,20.0,148.21,148.12,215.8]
[1741226660406,20.0,148.17,148.09,218.9886]
[1741226660612,20.0,148.16,148.09,209.84]
[1741226661013,20.0,148.16,148.12,312.0]
[1741226661537,20.0,148.16,148.09,128.54]
[1741226661538,1.77208568,148.15,148.09,128.54]
[1741226661753,80.8,148.14,148.09,120.56]
[1741226661926,0.14216157,148.12,148.0,7.96]
[1741226662131,18.64964886,148.1,147.97,97.2067]
[1741226662314,1.77312393,148.09,147.98,44.66710288]
[1741226662513,80.8,148.1,148.01,356.0984566]
[1741226662847,1.77265787,148.09,148.01,393.3]
[1741226663039,1.77265787,148.09,148.01,312.0]
[1741226663206,1.77265787,148.09,148.02,0.14216157]
[1741226663409,80.8,148.1,148.02,0.28432314]
[1741226663738,6.6026,148.14,148.03,0.28432314]
[1741226664039,89.17517566,148.14,148.03,125.68277974]
[1741226664239,20.0,148.11,148.03,125.68277974]
[1741226664555,88.93076179,148.21,148.07,0.56864628]
[1741226664843,38.64964886,148.16,148.07,0.14216157]
[1741226665027,20.0,148.12,148.07,0.14216157]
[1741226665215,20.0,148.12,148.05,0.28432314]
[1741226666232,21.77238741,148.11,148.04,0.14216157]
[1741226666440,20.0,148.1,148.04,0.14216157]
[1741226666641,21.77288642,148.09,148.02,0.03]
[1741226667340,20.0,148.05,148.02,0.03]
[1741226667642,102.57328451,148.04,148.02,0.03]
[1741226667955,1.77328451,148.04,148.02,0.03]
[1741226668520,99.733972,148.03,148.02,0.03]
[1741226668741,99.733972,148.03,147.89,215.8]
[1741226668742,20.70804232,148.03,147.89,215.8]
[1741226668940,18.933972,148.01,147.87,0.03]
[1741226669116,1.77464617,148.0,147.87,44.69710288]
[1741226669323,80.8,147.99,147.89,44.0984566]
[1741226669634,1.77406595,147.98,147.93,312.0]
[1741226670254,80.8,147.99,147.94,0.14216157]
[1741226670650,1.77409148,148.02,147.93,0.28432314]
[1741226670858,82.5737798,148.06,147.93,44.38277974]
[1741226671021,82.5737798,148.06,147.95,0.28432314]
[1741226671022,1.7737798,148.06,147.95,0.28432314]
[1741226671217,80.8,148.05,147.95,81.58432314]
[1741226671417,80.8,148.05,147.96,44.0984566]
[1741226671741,80.8,148.09,147.99,0.14216157]
[1741226671943,82.57304295,148.09,148.0,6.89856157]
[1741226672242,80.8,148.09,148.01,0.14216157]
[1741226672446,20.0,148.06,148.01,0.14216157]
[1741226672623,20.0,148.06,148.0,0.14216157]
[1741226672821,82.57305821,148.15,148.0,44.38277974]
[1741226673144,80.8,148.18,148.07,44.38277974]
[1741226673347,1.77264613,148.2,148.15,312.0]
[1741226673535,6.2025,148.22,148.16,0.14216157]
[1741226673536,7.97417726,148.22,148.16,0.14216157]
[1741226673737,87.2387,148.27,148.16,0.14216157]
[1741226673952,20.0,148.23,148.16,0.14216157]
[1741226674258,21.77128304,148.24,148.13,0.28432314]
[1741226674456,20.0,148.23,148.13,44.38277974]
[1741226674623,87.2387,148.27,148.15,44.38277974]
[1741226674819,4.53712916,148.31,148.18,0.14216157]
[1741226675024,1.80374906,148.28,148.18,0.14216157]
[1741226675524,20.0,148.27,148.18,0.14216157]
[1741226675926,1.80374906,148.28,148.18,0.14216157]
[1741226676341,20.0,148.27,148.18,0.14216157]
[1741226676839,20.0,148.27,148.17,8.08216157]
[1741226676840,1.77090465,148.26,148.17,8.08216157]
[1741226677135,20.0,148.25,148.2,312.0]
[1741226677349,0.033,148.24,148.21,0.14216157]
[1741226677820,0.033,148.24,148.18,0.14216157]
[1741226678020,1.80411905,148.24,148.18,0.14216157]
[1741226678421,20.0,148.2,148.12,7.9]
[1741226678623,1.77175307,148.19,148.12,7.9]
[1741226678834,1.77175307,148.19,148.1,0.03]
[1741226679563,0.28432314,148.22,148.1,0.03]
[1741226679727,1.77195316,148.21,148.1,0.03]
[1741226680049,80.8,148.2,148.1,0.03]
[1741226680226,1.77190248,148.19,148.1,0.03]
[1741226680427,1.7719326,148.2,148.11,0.14216157]
[1741226680621,1.77166538,148.19,148.14,0.14216157]
[1741226680822,18.64964886,148.2,148.14,0.14216157]
[1741226681042,1.77185024,148.19,148.1,0.17216157]
[1741226681325,1.77189957,148.2,148.1,0.17216157]
[1741226682018,80.8,148.21,148.13,0.14216157]
[1741226682230,0.033,148.24,148.15,0.14216157]
[1741226682432,0.033,148.24,148.14,0.14216157]
[1741226682631,20.0,148.2,148.14,0.14216157]
[1741226682856,20.0,148.19,148.11,44.38277974]
[1741226683152,80.8,148.22,148.15,0.28432314]
[1741226683325,0.033,148.24,148.15,0.28432314]
[1741226683724,0.033,148.24,148.15,0.14216157]
[1741226684057,0.28432314,148.17,148.1,0.03]
[1741226684362,20.0,148.13,148.1,0.03]
[1741226686134,82.57251546,148.16,148.1,0.03]
[1741226686881,99.44964886,148.15,148.1,0.03]
[1741226687039,1.77263881,148.14,148.1,0.03]
[1741226687761,99.733972,148.13,148.1,0.03]
[1741226687962,18.933972,148.11,148.1,0.03]
[1741226688263,18.933972,148.11,148.01,0.14216157]
[1741226688469,82.57300421,148.1,148.01,0.14216157]
[1741226688647,80.8,148.09,148.01,0.28432314]
[1741226688957,1.77286323,148.08,148.0,123.5922]
[1741226689149,80.8,148.07,148.0,120.64]
[1741226689559,82.5733151,148.07,148.01,0.14216157]
[1741226689943,20.0,148.04,148.01,0.14216157]
[1741226690135,82.5733151,148.07,148.01,0.14216157]
[1741226690342,80.8,148.07,148.01,0.14216157]
[1741226690744,80.8,148.07,148.04,0.14216157]
[1741226691150,80.8,148.07,148.01,0.14216157]
[1741226691460,20.0,148.04,148.0,120.64]
[1741226692066,20.0,148.01,148.0,120.64]
[1741226692645,20.0,148.01,148.0,120.78216157]
[1741226693045,1.77350704,148.07,148.01,0.14216157]
[1741226693263,80.8,148.06,148.01,0.14216157]
[1741226693564,20.0,148.03,148.01,0.14216157]
[1741226694179,80.8,148.06,148.02,312.14216157]
[1741226694475,80.8,148.06,148.03,0.14216157]
[1741226694844,80.8,148.12,148.01,0.28432314]
[1741226695042,82.57284504,148.11,148.01,0.28432314]
[1741226695242,80.8,148.1,148.01,0.28432314]
[1741226695979,1.7728654,148.09,148.01,0.14216157]
[1741226696154,80.8,148.1,148.01,81.58432314]
[1741226697081,1.77290109,148.09,148.01,81.44216157]
[1741226697581,80.8,148.08,148.01,0.14216157]
[1741226697761,20.0,148.05,148.03,312.0]
[1741226697956,20.0,148.05,148.04,0.14216157]
[1741226698463,20.0,148.05,148.01,0.14216157]
[1741226699179,80.8,148.07,148.01,0.28432314]
[1741226699481,20.0,148.09,148.01,0.28432314]
[1741226699682,20.0,148.08,148.01,81.44216157]
[1741226699861,20.0,148.07,148.01,0.14216157]
[1741226700255,20.0,148.07,148.0,120.64]
[1741226700256,20.0,148.03,148.0,120.64]
[1741226700469,80.8,148.02,147.94,84.235]
[1741226700659,82.57393391,148.01,147.94,84.235]
[1741226700865,20.0,147.97,147.91,81.33]
[1741226701184,80.8,147.97,147.91,0.03]
[1741226701352,80.8,148.04,147.94,0.14216157]
[1741226701547,80.8,148.04,147.97,0.14216157]
[1741226701548,80.8,148.03,147.97,0.14216157]
[1741226701770,82.57387564,148.02,147.97,0.14216157]
[1741226701984,82.57387564,148.02,147.94,0.03]
[1741226702183,80.8,148.02,147.95,52.06277974]
[1741226702383,10.80539567,148.1,147.95,52.06277974]
[1741226702384,80.8,148.09,147.99,0.14216157]
[1741226702589,82.5731514,148.08,147.99,0.14216157]
[1741226702888,82.5731514,148.08,147.95,142.54394364]
[1741226702889,80.8,148.07,147.96,0.14216157]
[1741226703088,1.80616663,148.13,148.04,0.14216157]
[1741226703256,1.80616663,148.13,148.06,44.38277974]
[1741226703257,0.033,148.13,148.06,44.38277974]
[1741226703451,0.033,148.13,148.06,44.24061817]
[1741226703664,0.033,148.13,148.06,0.28432314]
[1741226703973,0.033,148.13,148.06,44.38277974]
[1741226704182,0.033,148.13,148.11,0.14216157]
[1741226704398,0.033,148.13,148.09,134.5]
[1741226704682,0.033,148.13,148.1,0.14216157]
[1741226705074,0.033,148.13,148.11,0.14216157]
[1741226705454,0.033,148.13,148.07,0.28432314]
[1741226705656,21.80525377,148.13,148.07,0.14216157]
[1741226706058,20.0,148.09,148.05,0.14216157]
[1741226706789,0.033,148.13,148.08,0.42648471]
[1741226706967,0.033,148.13,148.12,44.38277974]
[1741226707291,10.122229,148.24,148.15,0.28432314]
[1741226707584,10.122229,148.24,148.19,0.14216157]
[1741226707585,0.033,148.24,148.19,0.14216157]
[1741226708056,0.033,148.24,148.18,0.35936639]
[1741226708263,0.033,148.24,148.21,44.0984566]
[1741226708466,0.033,148.24,148.23,312.0]
[1741226709062,0.033,148.25,148.23,490.5984566]
[1741226709264,0.033,148.25,148.23,134.5]
[1741226709784,0.033,148.25,148.2,44.0984566]
[1741226709965,0.033,148.25,148.24,44.0984566]
[1741226710158,0.033,148.25,148.24,45.02454076]
[1741226710362,0.033,148.28,148.27,0.28432314]
[1741226710670,1.7696638,148.38,148.29,0.14216157]
[1741226710870,80.8,148.42,148.31,44.24061817]
[1741226710871,1.7696638,148.41,148.31,44.24061817]
[1741226711077,1.7691427,148.44,148.33,44.38277974]
[1741226711283,1.7691427,148.44,148.33,179.16710288]
[1741226711484,10.089229,148.45,148.34,18.933972]
[1741226711667,11.85774824,148.45,148.39,0.14216157]
[1741226712062,18.64964886,148.44,148.36,7.68]
[1741226712262,1.76930273,148.43,148.39,312.0]
[1741226712495,9.50206163,148.51,148.4,0.14216157]
[1741226712496,1.76879778,148.45,148.4,0.14216157]
[1741226712662,1.7686675,148.48,148.4,0.14216157]
[1741226712861,20.0,148.46,148.37,0.14216157]
[1741226713093,18.64964886,148.44,148.37,0.14216157]
[1741226713291,1.76924011,148.43,148.31,0.14216157]
[1741226713588,0.14216157,148.41,148.25,6.5085]
[1741226713797,0.14216157,148.41,148.24,134.5]
[1741226713798,0.14216157,148.38,148.24,134.5]
[1741226713969,18.933972,148.36,148.24,44.0984566]
[1741226714163,1.77023893,148.37,148.23,7.68]
[1741226714164,1.77010655,148.35,148.23,7.68]
[1741226714390,0.28432314,148.34,148.23,142.18]
[1741226714567,1.77032396,148.33,148.23,186.2784566]
[1741226714793,1.91216255,148.36,148.24,44.0984566]
[1741226714978,0.28432314,148.34,148.23,142.18]
[1741226715177,0.28432314,148.32,148.22,120.58]
[1741226715496,1.77076698,148.31,148.22,120.58]
[1741226715791,1.77052355,148.33,148.24,312.0]
[1741226716192,0.28432314,148.32,148.24,312.0]
[1741226716404,0.14216157,148.28,148.15,178.5984566]
[1741226716695,20.0,148.23,148.13,44.0984566]
[1741226716916,20.0,148.22,148.14,44.0984566]
[1741226717077,20.0,148.22,148.12,223.48]
[1741226717278,0.28432314,148.3,148.16,44.0984566]
[1741226717476,82.57088288,148.29,148.17,44.0984566]
[1741226717683,80.8,148.29,148.21,44.24061817]
[1741226717888,0.28432314,148.34,148.23,0.14216157]
[1741226718089,2.05454007,148.34,148.23,0.14216157]
[1741226718288,20.0,148.3,148.23,0.14216157]
[1741226718491,1.77062446,148.29,148.22,0.14216157]
[1741226718691,20.0,148.3,148.22,0.14216157]
[1741226719294,20.0,148.3,148.26,312.0]
[1741226719799,20.0,148.26,148.18,51.7784566]
[1741226719999,1.77056041,148.3,148.19,44.38277974]
[1741226720380,99.44964886,148.29,148.18,7.68]
[1741226720702,18.64964886,148.27,148.18,7.68]
[1741226720876,1.77115333,148.26,148.19,0.14216157]
[1741226721075,1.77115333,148.26,148.13,215.8]
[1741226721076,18.64964886,148.25,148.13,81.3]
[1741226721315,1.77145803,148.24,148.15,44.0984566]
[1741226721482,0.28432314,148.33,148.19,0.14216157]
[1741226721809,82.57057234,148.32,148.21,0.14216157]
[1741226722109,80.8,148.31,148.21,133.18061817]
[1741226722604,80.8,148.31,148.27,0.14216157]
[1741226723194,80.8,148.31,148.23,0.14216157]
[1741226723397,1.77033252,148.3,148.23,0.14216157]
[1741226723599,20.0,148.26,148.23,0.14216157]
[1741226723914,20.0,148.26,148.22,0.14216157]
[1741226724319,20.0,148.26,148.18,81.3]
[1741226724621,102.57092578,148.25,148.15,81.3]
[1741226724786,20.0,148.21,148.14,7.62]
[1741226724982,80.8,148.23,148.15,0.28432314]
[1741226725183,0.28432314,148.3,148.18,44.24061817]
[1741226725407,20.0,148.26,148.18,44.24061817]
[1741226725590,20.0,148.25,148.18,44.24061817]
[1741226725791,20.0,148.25,148.18,44.0984566]
[1741226725994,20.0,148.25,148.19,0.14216157]
[1741226726198,20.0,148.25,148.22,312.0]
[1741226726686,20.0,148.24,148.23,0.14216157]
[1741226726941,80.8,148.26,148.23,0.14216157]
[1741226727099,80.8,148.26,148.19,0.28432314]
[1741226727296,20.0,148.27,148.19,81.58432314]
[1741226727492,20.0,148.27,148.19,125.68277974]
[1741226727821,80.8,148.29,148.21,44.38277974]
[1741226727991,0.033,148.31,148.23,0.14216157]
[1741226728390,0.033,148.31,148.25,0.14216157]
[1741226728886,0.033,148.31,148.27,0.28432314]
[1741226729091,0.033,148.31,148.3,0.14216157]
[1741226729323,0.033,148.31,148.3,125.68277974]
[1741226729790,0.033,148.31,148.3,437.68277974]
[1741226730394,82.56928643,148.44,148.32,0.28432314]
[1741226730598,82.56928643,148.44,148.35,0.14216157]
[1741226730820,20.0,148.41,148.35,0.14216157]
[1741226731143,18.64964886,148.43,148.33,0.14216157]
[1741226731311,1.76931361,148.42,148.33,0.28432314]
[1741226731639,1.76931361,148.42,148.33,0.14216157]
[1741226731849,18.64964886,148.41,148.33,0.14216157]
[1741226732055,18.64964886,148.39,148.33,0.14216157]
[1741226732341,1.76970744,148.4,148.33,0.14216157]
[1741226732524,80.8,148.44,148.33,0.14216157]
[1741226732728,82.56897764,148.43,148.33,0.14216157]
[1741226733038,99.44964886,148.42,148.33,0.14216157]
[1741226733239,18.64964886,148.4,148.32,7.58]
[1741226733447,82.56948543,148.39,148.27,201.76]
[1741226733610,80.8,148.38,148.27,201.76]
[1741226733814,1.76985501,148.37,148.28,0.14216157]
[1741226734312,20.0,148.33,148.27,120.46]
[1741226734517,18.64964886,148.36,148.28,312.0]
[1741226734518,20.0,148.32,148.28,312.0]
[1741226734714,20.0,148.32,148.29,0.14216157]
[1741226735025,80.8,148.39,148.29,44.24061817]
[1741226735249,20.0,148.36,148.28,0.14216157]
[1741226735419,82.56982838,148.35,148.27,201.76]
[1741226735619,20.0,148.32,148.27,201.76]
[1741226735832,20.0,148.32,148.28,0.14216157]
[1741226736037,20.0,148.32,148.27,201.76]
[1741226736349,80.8,148.35,148.28,0.14216157]
[1741226736513,80.8,148.35,148.28,81.44216157]
[1741226737050,20.0,148.32,148.27,120.46]
[1741226737210,1.77000824,148.31,148.24,0.03]
[1741226737415,1.77053427,148.33,148.24,0.03]
[1741226737837,20.0,148.33,148.24,0.03]
[1741226738144,0.033,148.37,148.28,0.14216157]
[1741226738351,18.933972,148.35,148.24,0.03]
[1741226738561,82.57047504,148.34,148.24,0.03]
[1741226738741,82.57047504,148.34,148.25,0.14216157]
[1741226739557,82.57047504,148.34,148.24,0.03]
[1741226740157,25.538772,148.33,148.24,0.03]
[1741226740448,1.77047707,148.32,148.24,0.03]
[1741226740658,82.57047707,148.32,148.24,0.03]
[1741226740956,99.733972,148.31,148.24,0.03]
[1741226741249,18.64964886,148.29,148.24,0.03]
[1741226741452,20.0,148.26,148.24,0.03]
[1741226741852,20.0,148.27,148.24,0.03]
[1741226742227,1.77065369,148.26,148.24,0.03]
[1741226742926,20.0,148.27,148.24,0.03]
[1741226743436,1.77081388,148.26,148.24,0.03]
[1741226743957,80.8,148.25,148.24,0.03]
[1741226744248,80.8,148.28,148.24,0.03]
[1741226744469,80.8,148.35,148.24,0.03]
[1741226744645,20.0,148.3,148.24,0.17216157]
[1741226745025,20.0,148.3,148.27,312.0]
[1741226745252,80.8,148.31,148.27,312.0]
[1741226745770,80.8,148.31,148.28,0.14216157]
[1741226745974,82.57032024,148.36,148.28,0.14216157]
[1741226746144,80.8,148.36,148.27,0.14216157]
[1741226746738,80.8,148.36,148.26,0.28432314]
[1741226746939,1.76980809,148.35,148.26,0.14216157]
[1741226747155,1.76980809,148.35,148.26,0.28432314]
[1741226747354,80.8,148.36,148.26,0.28432314]
[1741226747549,1.7696698,148.35,148.26,0.14216157]
[1741226747965,80.8,148.34,148.24,0.03]
[1741226748153,82.57037878,148.33,148.24,0.03]
[1741226748356,82.57037878,148.33,148.28,0.03]
[1741226748673,80.8,148.32,148.28,0.03]
[1741226748846,20.0,148.29,148.28,0.03]
[1741226749160,80.8,148.3,148.28,0.03]
[1741226750266,101.22019569,148.29,148.28,0.03]
[1741226750450,20.0,148.25,148.24,0.03]
[1741226750652,82.57106843,148.26,148.24,0.03]
[1741226750858,99.44964886,148.25,148.24,0.03]
[1741226751171,99.44964886,148.25,148.13,254.94]
[1741226751172,20.0,148.22,148.13,120.44]
[1741226751372,82.57166344,148.21,148.14,0.14216157]
[1741226751542,80.8,148.2,148.13,120.44]
[1741226751748,20.0,148.17,148.13,120.44]
[1741226751945,80.8,148.18,148.13,120.44]
[1741226752659,80.8,148.18,148.14,0.14216157]
[1741226752862,80.8,148.18,148.13,432.44]
[1741226753061,80.8,148.18,148.14,0.14216157]
[1741226753875,80.8,148.18,148.13,120.44]
[1741226754059,80.8,148.18,148.14,0.14216157]
[1741226754258,80.8,148.24,148.14,0.28432314]
[1741226754451,80.8,148.27,148.16,44.38277974]
[1741226754656,80.8,148.26,148.16,81.44216157]
[1741226754876,1.771056,148.25,148.16,81.44216157]
[1741226755051,80.8,148.26,148.17,0.14216157]
[1741226755259,6.6197,148.28,148.2,0.14216157]
[1741226755457,82.5704992,148.3,148.2,125.54061817]
[1741226755686,80.8,148.3,148.22,0.14216157]
[1741226756187,20.0,148.27,148.25,312.0]
[1741226756477,20.0,148.26,148.25,312.14216157]
[1741226757053,80.8,148.28,148.26,0.14216157]
[1741226757379,1.77055795,148.32,148.26,0.14216157]
[1741226757380,80.8,148.32,148.26,0.14216157]
[1741226757553,20.0,148.29,148.22,44.0984566]
[1741226757760,20.0,148.28,148.23,0.14216157]
[1741226757981,20.0,148.28,148.23,0.56864628]
[1741226758185,80.8,148.31,148.24,0.14216157]
[1741226758353,82.56987854,148.36,148.25,0.14216157]
[1741226758554,80.8,148.35,148.25,81.44216157]
[1741226758852,1.76985555,148.34,148.25,81.44216157]
[1741226759070,20.0,148.3,148.25,0.14216157]
[1741226759279,80.8,148.29,148.24,7.44]
[1741226759452,80.8,148.29,148.25,0.14216157]
[1741226760348,80.8,148.29,148.25,312.14216157]
[1741226763257,1.77088485,148.3,148.25,0.03]
[1741226764180,18.64964886,148.29,148.25,0.03]
[1741226764378,20.0,148.26,148.25,0.03]
[1741226765253,39.07613357,148.26,148.25,0.03]
[1741226765459,20.0,148.21,148.13,120.44]
[1741226765662,20.0,148.17,148.09,81.33]
[1741226765887,1.77214637,148.16,148.09,0.03]
[1741226766187,20.0,148.17,148.09,0.03]
[1741226766364,20.0,148.17,148.1,44.0984566]
[1741226766570,80.8,148.2,148.11,44.38277974]
[1741226766891,82.5714386,148.19,148.11,81.3]
[1741226767185,80.8,148.25,148.17,0.14216157]
[1741226767386,80.8,148.25,148.17,125.68277974]
[1741226767688,80.8,148.25,148.19,0.14216157]
[1741226768062,80.8,148.25,148.18,0.14216157]
[1741226768461,80.8,148.25,148.23,0.14216157]
[1741226768658,82.57084624,148.24,148.17,0.14216157]
[1741226768872,80.8,148.23,148.17,0.14216157]
[1741226769073,80.8,148.26,148.17,44.24061817]
[1741226769292,1.77075052,148.25,148.17,81.44216157]
[1741226769475,1.77075052,148.25,148.14,3.0367]
[1741226769476,20.0,148.22,148.14,0.14216157]
[1741226769683,20.0,148.18,148.09,215.83]
[1741226770003,20.0,148.16,148.09,0.03]
[1741226770165,20.0,148.12,148.09,0.03]
[1741226771702,99.44964886,148.14,148.09,0.03]
[1741226771875,1.77281736,148.13,148.09,0.03]
[1741226772574,18.64964886,148.12,148.09,0.03]
[1741226772774,1.77291654,148.13,148.09,0.03]
[1741226773586,82.57243623,148.14,148.09,0.03]
[1741226773968,80.8,148.14,148.09,0.03]
[1741226774193,80.8,148.19,148.12,0.14216157]
[1741226774367,80.8,148.22,148.14,44.24061817]
[1741226774562,80.8,148.24,148.17,0.14216157]
[1741226774802,80.8,148.24,148.21,0.14216157]
[1741226775097,0.033,148.27,148.21,0.14216157]
[1741226775263,20.0,148.25,148.21,0.14216157]
[1741226775467,0.033,148.27,148.2,0.28432314]
[1741226775668,0.033,148.27,148.25,0.14216157]
[1741226775879,0.033,148.27,148.25,44.24061817]
[1741226776090,0.033,148.27,148.25,0.14216157]
[1741226776415,0.033,148.27,148.24,44.24061817]
[1741226776579,0.033,148.27,148.24,0.14216157]
[1741226776781,0.033,148.27,148.21,0.14216157]
[1741226777007,0.033,148.27,148.24,0.14216157]
[1741226777202,0.033,148.27,148.26,0.14216157]
[1741226777507,0.033,148.27,148.26,44.24061817]
[1741226777691,0.033,148.27,148.25,0.14216157]
[1741226777890,0.033,148.27,148.26,45.02446137]
[1741226778083,0.033,148.37,148.31,44.24061817]
[1741226778282,20.033,148.37,148.31,44.24061817]
[1741226778482,20.033,148.37,148.31,312.14216157]
[1741226779082,1.7693401,148.36,148.31,312.0]
[1741226779280,1.7693401,148.36,148.24,44.0984566]
[1741226779528,1.7693401,148.36,148.25,0.14216157]
[1741226779689,1.7693401,148.36,148.26,44.0984566]
[1741226780212,1.7693401,148.36,148.27,0.14216157]
[1741226780808,1.7693401,148.36,148.27,0.28432314]
[1741226781009,0.033,148.37,148.3,44.0984566]
[1741226781305,0.033,148.37,148.31,44.24061817]
[1741226781487,0.033,148.37,148.32,0.42648471]
[1741226781810,0.033,148.37,148.36,44.38277974]
[1741226782180,0.033,148.37,148.36,356.66710288]
[1741226782508,0.033,148.41,148.37,0.56864628]
[1741226782679,0.033,148.41,148.4,83.31675174]
[1741226782881,0.033,148.45,148.42,0.56864628]
[1741226783077,0.033,148.45,148.44,44.38277974]
[1741226783283,0.033,148.47,148.45,0.28432314]
[1741226783480,0.033,148.47,148.46,0.14216157]
[1741226784322,0.033,148.47,148.4,44.0984566]
[1741226784507,0.033,148.47,148.41,0.14216157]
[1741226785017,1.80121779,148.47,148.39,0.14216157]
[1741226785192,0.033,148.47,148.42,0.14216157]
[1741226785390,0.033,148.47,148.42,44.24061817]
[1741226785808,0.033,148.47,148.46,312.14216157]
[1741226786508,0.033,148.47,148.4,0.14216157]
[1741226786689,0.033,148.47,148.38,7.46]
[1741226786690,1.80148723,148.47,148.38,7.46]
[1741226787093,1.80148723,148.47,148.39,0.14216157]
[1741226787512,18.64964886,148.46,148.36,44.0984566]
[1741226787695,1.76881288,148.45,148.35,171.9984566]
[1741226787898,1.80197368,148.47,148.37,44.0984566]
[1741226788101,0.033,148.47,148.41,0.14216157]
[1741226788597,80.8,148.46,148.36,44.0984566]
[1741226788915,101.21858117,148.45,148.36,0.14216157]
[1741226789310,101.21858117,148.45,148.35,171.9984566]
[1741226789524,18.64964886,148.43,148.36,312.0]
[1741226789705,82.5692005,148.42,148.35,120.48]
[1741226789902,82.5692005,148.42,148.27,224.8958]
[1741226789903,18.933972,148.41,148.27,224.8958]
[1741226790129,20.0,148.37,148.27,91.4837]
[1741226790310,20.0,148.36,148.29,0.14216157]